Workbook

Sheet Debt Sculpting - Manual
C3: Inputs
D4: Project Cost | F4: 800
D5: Debt to Capital | F5: 0.8
D6: Debt | F6: =F4*F5 -> 640
D7: Interest Rate | F7: 0.05
D8: Minimum DSCR | F8: 1.2
D9: Maximum Debt Life | F9: 6.8
F11: 1 | G11: 2 | H11: 3 | I11: 4 | J11: 5 | K11: 6 | L11: 7 | M11: 8 | N11: 9 | O11: 10
D12: CFADS | F12: 120 | G12: 120 | H12: 120 | I12: 130 | J12: 130 | K12: 130 | L12: 140 | M12: 120 | N12: 120 | O12: 100
C14: Step 1: Compute LLCR
D15: NPV of Cash Flows | F15: =NPV(F7,F12:O12) -> 952.0679934 | G15: =_xlfn.FORMULATEXT(F15) -> =NPV(F7,F12:O12)
D16: LLCR | F16: =F15/F6 -> 1.48760624 | G16: =_xlfn.FORMULATEXT(F16) -> =F15/F6
C18: Step 2-4:
D19: LLCR Factor | F19: 1.210431231 | G19: llcr_factor
D20: Final Interpolation Period | F20: 100 | G20: final_interp
D22: 2 x 2 Table
D23: Period | G23: 1 | H23: 10
D24: DSCR | G24: =llcr_factor*F16 -> 1.800645052 | H24: =F8 -> 1.2
C26: Step 5: Interpolate - to Compute Curved DSCR | F26: =interpolate_look_up(F11,23:23,24:24) -> 1.800645052 | G26: =interpolate_look_up(G11,23:23,24:24) -> 1.721254652 | H26: =interpolate_look_up(H11,23:23,24:24) -> 1.645364572 | I26: =interpolate_look_up(I11,23:23,24:24) -> 1.572820484 | J26: =interpolate_look_up(J11,23:23,24:24) -> 1.503474864 | K26: =interpolate_look_up(K11,23:23,24:24) -> 1.43718669 | L26: =interpolate_look_up(L11,23:23,24:24) -> 1.37382116 | M26: =interpolate_look_up(M11,23:23,24:24) -> 1.313249416 | N26: =interpolate_look_up(N11,23:23,24:24) -> 1.255348278 | O26: =interpolate_look_up(O11,23:23,24:24) -> 1.2
C28: Step 6-7: Debt Service and PV of Debt Service
D29: Debt Service | F29: =F12/F26 -> 66.6427844 | G29: =G12/G26 -> 69.71658719 | H29: 72.93216473 | I29: 82.65406085 | J29: 86.46636079 | K29: 90.4544976 | L29: 101.9055493 | M29: 91.37639702 | N29: 95.5910022 | O29: 83.33333333 | Q29: =_xlfn.FORMULATEXT(O29) -> =O12/O26
D31: PV of Debt Service | F31: =NPV(F7,F29:O29) -> 640.0005234 | G31: =_xlfn.FORMULATEXT(F31) -> =NPV(F7,F29:O29)
C33: Step 8: Goal Seek to Find LLCR Factor
D35: PV DS | F35: =F31 -> 640.0005234
D36: Target Debt | F36: =F6 -> 640
D37: Difference | F37: =F35-F36 -> 0.0005233644863 | G37: difference
C39: Step 9: Compute the Average Debt Life
D40: Debt Balance | F40: =F11 -> 1 | G40: =G11 -> 2 | H40: 3 | I40: 4 | J40: 5 | K40: 6 | L40: 7 | M40: 8 | N40: 9 | O40: 10
D41: Opening Balance | F41: =E43 -> 640 | G41: =F43 -> 605.3572156 | H41: 565.9084892 | I41: 521.2717489 | J41: 464.6812755 | K41: 401.4489785 | L41: 331.0669298 | M41: 245.714727 | N41: 166.6240663 | O41: 79.36426745
D42: Less: Repayment | F42: =F29-F44 -> 34.6427844 | G42: =G29-G44 -> 39.44872641 | H42: 44.63674027 | I42: 56.5904734 | J42: 63.23229702 | K42: 70.38204867 | L42: 85.35220281 | M42: 79.09066067 | N42: 87.25979888 | O42: 79.36511996
D43: Closing Balance | E43: =F36 -> 640 | F43: =F41-F42 -> 605.3572156 | G43: =G41-G42 -> 565.9084892 | H43: 521.2717489 | I43: 464.6812755 | J43: 401.4489785 | K43: 331.0669298 | L43: 245.714727 | M43: 166.6240663 | N43: 79.36426745 | O43: -0.0008525056
D44: Interest | E44: =F7 -> 0.05 | F44: =F41*$E$44 -> 32 | G44: =G41*$E$44 -> 30.26786078 | H44: 28.29542446 | I44: 26.06358745 | J44: 23.23406378 | K44: 20.07244892 | L44: 16.55334649 | M44: 12.28573635 | N44: 8.331203317 | O44: 3.968213373
D46: Average Loan Life
D47: Sumproduct | E47: =SUMPRODUCT(F42:O42,F40:O40) -> 4021.446223
D48: Loan Life | E48: =E47/E43 -> 6.283509724
D50: Sum of Open Debt Balance | E50: =SUM(F41:O41) -> 4021.437698
D51: Loan Life | E51: =E50/E43 -> 6.283496404 | F51: loan_life
G54: Final Interpolation Period
H55: LLCR Factor | I55: Loan Life | J55: Goal Seek
G56: 5 | H56: 1.210431231 | I56: 6.283496404 | J56: 0.0005233644863
G57: 6 | H57: 1.210431231 | I57: 6.283496404 | J57: 0.0005233644863
G58: 7 | H58: 1.210431231 | I58: 6.283496404 | J58: 0.0005233644863
G59: 8 | H59: 1.210431231 | I59: 6.283496404 | J59: 0.0005233644863
G60: 9 | H60: 1.210431231 | I60: 6.283496404 | J60: 0.0005233644863
G61: 10 | H61: 1.210431231 | I61: 6.283496404 | J61: 0.0005233644863
G62: 10 | H62: 1.210431231 | I62: 6.283496404 | J62: 0.0005233644863
G63: 20 | H63: 1.210431231 | I63: 6.283496404 | J63: 0.0005233644863
G64: 30 | H64: 1.210431231 | I64: 6.283496404 | J64: 0.0005233644863
G65: 100 | H65: 1.210431231 | I65: 6.283496404 | J65: 0.0005233644863
